[Event "Titled Tuesday Blitz March 21 Early 2023"]
[White "Skvortsov, Andrei"]
[Black "Moussard, Jules"]
[WhiteFideId "24108600"]
[BlackFideId "642908"]
[WhiteElo "2259"]
[BlackElo "2610"]
[Result "1-0"]
[Round "06"]
[TimeControl "180+2"]
[Date "2023.03.21"]
[WhiteClock "0:01:00"]
[BlackClock "0:00:59"]

1. e4 {[%clk 0:03:00]}  c5 {[%clk 0:02:57]} 2. d4 {[%clk 0:03:00]}  cxd4 {[%clk 0:02:57]} 3. Qxd4 {[%clk 0:03:01]}  Nc6 {[%clk 0:02:56]} 4. Qd3 {[%clk 0:03:02]}  Nf6 {[%clk 0:02:54]} 5. Nc3 {[%clk 0:03:02]}  g6 {[%clk 0:02:51]} 6. Nf3 {[%clk 0:03:01]}  Bg7 {[%clk 0:02:49]} 7. Be2 {[%clk 0:03:02]}  O-O {[%clk 0:02:47]} 8. O-O {[%clk 0:03:02]}  d6 {[%clk 0:02:48]} 9. Nd5 {[%clk 0:03:02]}  Be6 {[%clk 0:02:38]} 10. c3 {[%clk 0:03:00]}  Nd7 {[%clk 0:02:27]} 11. Bf4 {[%clk 0:02:52]}  h6 {[%clk 0:02:17]} 12. Rfd1 {[%clk 0:02:49]}  g5 {[%clk 0:02:16]} 13. Bg3 {[%clk 0:02:44]}  f5 {[%clk 0:02:15]} 14. exf5 {[%clk 0:02:43]}  Bxf5 {[%clk 0:02:15]} 15. Qd2 {[%clk 0:02:37]}  Nc5 {[%clk 0:02:12]} 16. Bc4 {[%clk 0:02:37]}  Kh8 {[%clk 0:02:03]} 17. Qe1 {[%clk 0:02:33]}  Ne4 {[%clk 0:01:56]} 18. Bd3 {[%clk 0:02:28]}  Nxg3 {[%clk 0:01:54]} 19. hxg3 {[%clk 0:02:27]}  Bxd3 {[%clk 0:01:46]} 20. Rxd3 {[%clk 0:02:26]}  Qd7 {[%clk 0:01:43]} 21. Rad1 {[%clk 0:02:24]}  Rf7 {[%clk 0:01:38]} 22. b4 {[%clk 0:02:16]}  Raf8 {[%clk 0:01:31]} 23. b5 {[%clk 0:01:53]}  Na5 {[%clk 0:01:29]} 24. a4 {[%clk 0:01:41]}  Nc4 {[%clk 0:01:28]} 25. Qe2 {[%clk 0:01:31]}  Nb6 {[%clk 0:01:17]} 26. Nxb6 {[%clk 0:01:11]}  axb6 {[%clk 0:01:18]} 27. Qe4 {[%clk 0:01:11]}  Rc8 {[%clk 0:01:13]} 28. Ne5 {[%clk 0:01:05]}  Bxe5 {[%clk 0:01:08]} 29. Qxe5+ {[%clk 0:01:05]}  Kg8 {[%clk 0:01:05]} 30. Qe4 {[%clk 0:01:02]}  Kg7 {[%clk 0:00:59]} 31. Qd4+ {[%clk 0:01:01]}  Rf6 {[%clk 0:00:58]} 32. Qxb6 {[%clk 0:01:01]}  Rc5 {[%clk 0:00:59]} 33. Qxc5 {[%clk 0:01:00]} 1-0


[Site "https://www.chess.com"]

[Event "Titled Tuesday Blitz March 21 Early 2023"]
[White "Rustemov, Alexander"]
[Black "Gontcharov, Vladislav"]
[WhiteFideId "4119002"]
[BlackFideId "4123492"]
[WhiteElo "2862"]
[BlackElo "2470"]
[Result "1-0"]
[Round "06"]
[TimeControl "180+2"]
[Date "2023.03.21"]
[WhiteClock "0:00:16"]
[BlackClock "0:00:01"]

1. d4 {[%clk 0:03:00]}  Nf6 {[%clk 0:02:59]} 2. c4 {[%clk 0:03:01]}  e6 {[%clk 0:02:57]} 3. Nf3 {[%clk 0:03:01]}  b6 {[%clk 0:02:57]} 4. a3 {[%clk 0:03:00]}  Bb7 {[%clk 0:02:55]} 5. Nc3 {[%clk 0:03:00]}  Ne4 {[%clk 0:02:54]} 6. Nxe4 {[%clk 0:02:59]}  Bxe4 {[%clk 0:02:54]} 7. Bf4 {[%clk 0:03:00]}  Be7 {[%clk 0:02:46]} 8. e3 {[%clk 0:03:00]}  O-O {[%clk 0:02:45]} 9. Bd3 {[%clk 0:03:00]}  Bxd3 {[%clk 0:02:39]} 10. Qxd3 {[%clk 0:03:01]}  d6 {[%clk 0:02:38]} 11. O-O {[%clk 0:03:01]}  Nd7 {[%clk 0:02:38]} 12. Rfd1 {[%clk 0:02:57]}  f5 {[%clk 0:02:20]} 13. e4 {[%clk 0:02:42]}  Qe8 {[%clk 0:01:52]} 14. e5 {[%clk 0:02:30]}  dxe5 {[%clk 0:01:24]} 15. Nxe5 {[%clk 0:02:25]}  Nf6 {[%clk 0:01:23]} 16. Qe2 {[%clk 0:02:19]}  Rd8 {[%clk 0:01:19]} 17. h3 {[%clk 0:02:10]}  Bd6 {[%clk 0:01:11]} 18. Re1 {[%clk 0:02:07]}  Bxe5 {[%clk 0:01:09]} 19. Bxe5 {[%clk 0:02:07]}  Rd7 {[%clk 0:01:09]} 20. Rad1 {[%clk 0:01:49]}  Qf7 {[%clk 0:01:09]} 21. Bxf6 {[%clk 0:01:47]}  Qxf6 {[%clk 0:01:02]} 22. Qxe6+ {[%clk 0:01:46]}  Qxe6 {[%clk 0:01:03]} 23. Rxe6 {[%clk 0:01:47]}  Kf7 {[%clk 0:00:57]} 24. d5 {[%clk 0:01:45]}  a5 {[%clk 0:00:51]} 25. b3 {[%clk 0:01:38]}  Rfd8 {[%clk 0:00:48]} 26. Rde1 {[%clk 0:01:35]}  a4 {[%clk 0:00:48]} 27. b4 {[%clk 0:01:32]}  b5 {[%clk 0:00:48]} 28. cxb5 {[%clk 0:01:30]}  Rb8 {[%clk 0:00:43]} 29. R1e5 {[%clk 0:01:12]}  g6 {[%clk 0:00:43]} 30. Ra6 {[%clk 0:01:01]}  Rxb5 {[%clk 0:00:40]} 31. Rxa4 {[%clk 0:01:00]}  c6 {[%clk 0:00:39]} 32. Ra6 {[%clk 0:00:47]}  cxd5 {[%clk 0:00:29]} 33. Kf1 {[%clk 0:00:43]}  Rb8 {[%clk 0:00:20]} 34. Ra5 {[%clk 0:00:38]}  d4 {[%clk 0:00:20]} 35. Red5 {[%clk 0:00:37]}  Rxd5 {[%clk 0:00:12]} 36. Rxd5 {[%clk 0:00:36]}  Ra8 {[%clk 0:00:13]} 37. Rxd4 {[%clk 0:00:35]}  Rxa3 {[%clk 0:00:13]} 38. Rd7+ {[%clk 0:00:35]}  Ke6 {[%clk 0:00:12]} 39. Rxh7 {[%clk 0:00:35]}  Rb3 {[%clk 0:00:12]} 40. Rb7 {[%clk 0:00:34]}  g5 {[%clk 0:00:12]} 41. g3 {[%clk 0:00:33]}  Rb2 {[%clk 0:00:12]} 42. Kg2 {[%clk 0:00:32]}  Ke5 {[%clk 0:00:11]} 43. b5 {[%clk 0:00:32]}  Rb3 {[%clk 0:00:11]} 44. b6 {[%clk 0:00:32]}  f4 {[%clk 0:00:11]} 45. gxf4+ {[%clk 0:00:30]}  gxf4 {[%clk 0:00:12]} 46. Rb8 {[%clk 0:00:29]}  Kf6 {[%clk 0:00:12]} 47. h4 {[%clk 0:00:26]}  Kg7 {[%clk 0:00:10]} 48. h5 {[%clk 0:00:23]}  Kh6 {[%clk 0:00:08]} 49. b7 {[%clk 0:00:22]}  Kh7 {[%clk 0:00:08]} 50. h6 {[%clk 0:00:23]}  Rb6 {[%clk 0:00:05]} 51. Kf3 {[%clk 0:00:21]}  Rb4 {[%clk 0:00:05]} 52. Kg4 {[%clk 0:00:21]}  Rb2 {[%clk 0:00:04]} 53. f3 {[%clk 0:00:20]}  Rb4 {[%clk 0:00:03]} 54. Kg5 {[%clk 0:00:21]}  Rb6 {[%clk 0:00:01]} 55. Kxf4 {[%clk 0:00:20]}  Rb5 {[%clk 0:00:01]} 56. Kg4 {[%clk 0:00:20]}  Rb4+ {[%clk 0:00:02]} 57. f4 {[%clk 0:00:20]}  Rb1 {[%clk 0:00:02]} 58. f5 {[%clk 0:00:20]}  Rb6 {[%clk 0:00:01]} 59. f6 {[%clk 0:00:20]}  Rxf6 {[%clk 0:00:01]} 60. Rc8 {[%clk 0:00:17]}  Rg6+ {[%clk 0:00:01]} 61. Kf5 {[%clk 0:00:16]}  Rb6 {[%clk 0:00:01]} 62. b8=Q {[%clk 0:00:16]} 1-0


[Site "https://www.chess.com"]

[Event "Titled Tuesday Blitz March 21 Early 2023"]
[White "Van Foreest, Jorden"]
[Black "Itgelt, Khuyagtsogt"]
[WhiteFideId "1039784"]
[BlackFideId "4902912"]
[WhiteElo "2633"]
[BlackElo "2227"]
[Result "1-0"]
[Round "06"]
[TimeControl "180+2"]
[Date "2023.03.21"]
[WhiteClock "0:02:53"]
[BlackClock "0:01:17"]

1. Nf3 {[%clk 0:03:00]}  Nf6 {[%clk 0:02:59]} 2. d4 {[%clk 0:03:01]}  d5 {[%clk 0:02:59]} 3. c4 {[%clk 0:03:02]}  c6 {[%clk 0:02:59]} 4. Nc3 {[%clk 0:03:03]}  g6 {[%clk 0:02:59]} 5. cxd5 {[%clk 0:03:02]}  cxd5 {[%clk 0:02:59]} 6. Bf4 {[%clk 0:03:02]}  Bg7 {[%clk 0:02:55]} 7. h3 {[%clk 0:03:03]}  O-O {[%clk 0:02:51]} 8. e3 {[%clk 0:03:03]}  Nc6 {[%clk 0:02:51]} 9. Be2 {[%clk 0:03:04]}  Bf5 {[%clk 0:02:24]} 10. O-O {[%clk 0:03:04]}  Ne4 {[%clk 0:02:24]} 11. Qb3 {[%clk 0:03:03]}  Na5 {[%clk 0:02:18]} 12. Qb4 {[%clk 0:03:02]}  Nxc3 {[%clk 0:02:16]} 13. bxc3 {[%clk 0:03:01]}  Rc8 {[%clk 0:02:11]} 14. Nd2 {[%clk 0:03:02]}  Be6 {[%clk 0:02:06]} 15. Rfc1 {[%clk 0:03:02]}  b6 {[%clk 0:02:02]} 16. Ba6 {[%clk 0:03:00]}  Rc6 {[%clk 0:01:48]} 17. Nb3 {[%clk 0:02:59]}  Nc4 {[%clk 0:01:46]} 18. Bb7 {[%clk 0:02:59]}  a5 {[%clk 0:01:17]} 19. Qb5 {[%clk 0:02:58]}  Rc7 {[%clk 0:01:16]} 20. Bxc7 {[%clk 0:02:54]}  Qxc7 {[%clk 0:01:17]} 21. Bxd5 {[%clk 0:02:53]} 1-0


[Site "https://www.chess.com"]

[Event "Titled Tuesday Blitz March 21 Early 2023"]
[White "Deac, Bogdan-Daniel"]
[Black "Tregubov, Pavel V."]
[WhiteFideId "1226380"]
[BlackFideId "4115341"]
[WhiteElo "2649"]
[BlackElo "2425"]
[Result "1-0"]
[Round "06"]
[TimeControl "180+2"]
[Date "2023.03.21"]
[WhiteClock "0:00:16"]
[BlackClock "0:00:01"]

1. e4 {[%clk 0:03:00]}  e6 {[%clk 0:02:57]} 2. Qe2 {[%clk 0:02:58]}  c5 {[%clk 0:02:54]} 3. g3 {[%clk 0:02:56]}  Nc6 {[%clk 0:02:55]} 4. Bg2 {[%clk 0:02:57]}  g6 {[%clk 0:02:47]} 5. c3 {[%clk 0:02:56]}  Bg7 {[%clk 0:02:47]} 6. Nf3 {[%clk 0:02:56]}  Nge7 {[%clk 0:02:46]} 7. O-O {[%clk 0:02:55]}  O-O {[%clk 0:02:46]} 8. Rd1 {[%clk 0:02:56]}  e5 {[%clk 0:02:33]} 9. Na3 {[%clk 0:02:53]}  d6 {[%clk 0:02:32]} 10. d3 {[%clk 0:02:52]}  h6 {[%clk 0:02:31]} 11. Nc2 {[%clk 0:02:50]}  Be6 {[%clk 0:02:29]} 12. d4 {[%clk 0:02:49]}  exd4 {[%clk 0:02:08]} 13. cxd4 {[%clk 0:02:50]}  Bg4 {[%clk 0:02:08]} 14. dxc5 {[%clk 0:02:48]}  Ne5 {[%clk 0:02:01]} 15. cxd6 {[%clk 0:02:35]}  N7c6 {[%clk 0:02:01]} 16. Bf4 {[%clk 0:02:05]}  Qf6 {[%clk 0:01:57]} 17. Nce1 {[%clk 0:01:28]}  Rad8 {[%clk 0:01:49]} 18. h3 {[%clk 0:01:03]}  Bxf3 {[%clk 0:01:44]} 19. Bxf3 {[%clk 0:00:55]}  Rxd6 {[%clk 0:01:41]} 20. Rxd6 {[%clk 0:00:44]}  Qxd6 {[%clk 0:01:41]} 21. Bg2 {[%clk 0:00:44]}  Rd8 {[%clk 0:01:36]} 22. Be3 {[%clk 0:00:38]}  Qb4 {[%clk 0:01:30]} 23. Rc1 {[%clk 0:00:34]}  Nd4 {[%clk 0:01:14]} 24. Bxd4 {[%clk 0:00:33]}  Rxd4 {[%clk 0:01:03]} 25. Rc2 {[%clk 0:00:31]}  b5 {[%clk 0:00:42]} 26. Kh2 {[%clk 0:00:29]}  Kh7 {[%clk 0:00:39]} 27. f4 {[%clk 0:00:28]}  Nc4 {[%clk 0:00:39]} 28. e5 {[%clk 0:00:28]}  Qe7 {[%clk 0:00:22]} 29. b3 {[%clk 0:00:26]}  Na3 {[%clk 0:00:16]} 30. Rc1 {[%clk 0:00:25]}  f6 {[%clk 0:00:15]} 31. Nf3 {[%clk 0:00:21]}  Rd8 {[%clk 0:00:12]} 32. h4 {[%clk 0:00:21]}  fxe5 {[%clk 0:00:09]} 33. fxe5 {[%clk 0:00:22]}  Re8 {[%clk 0:00:04]} 34. Re1 {[%clk 0:00:16]}  b4 {[%clk 0:00:02]} 35. Qe4 {[%clk 0:00:15]}  Nb5 {[%clk 0:00:01]} 36. h5 {[%clk 0:00:16]} 1-0


[Site "https://www.chess.com"]

[Event "Titled Tuesday Blitz March 21 Early 2023"]
[White "Durarbayli, Vasif"]
[Black "Zamorano, Jorge"]
[WhiteFideId "13402935"]
[BlackFideId "173770"]
[WhiteElo "2543"]
[BlackElo "2331"]
[Result "1-0"]
[Round "06"]
[TimeControl "180+2"]
[Date "2023.03.21"]
[WhiteClock "0:00:12"]
[BlackClock "0:00:06"]

1. e4 {[%clk 0:03:00]}  c5 {[%clk 0:02:57]} 2. Nf3 {[%clk 0:03:00]}  d6 {[%clk 0:02:55]} 3. d4 {[%clk 0:03:01]}  cxd4 {[%clk 0:02:56]} 4. Nxd4 {[%clk 0:03:01]}  Nf6 {[%clk 0:02:56]} 5. Nc3 {[%clk 0:03:02]}  a6 {[%clk 0:02:57]} 6. Bg5 {[%clk 0:03:02]}  e6 {[%clk 0:02:57]} 7. f4 {[%clk 0:03:02]}  Qc7 {[%clk 0:02:58]} 8. Bxf6 {[%clk 0:03:01]}  gxf6 {[%clk 0:02:57]} 9. Qd3 {[%clk 0:03:02]}  Nc6 {[%clk 0:02:55]} 10. O-O-O {[%clk 0:02:59]}  Be7 {[%clk 0:02:37]} 11. Be2 {[%clk 0:02:58]}  h5 {[%clk 0:02:36]} 12. Rhf1 {[%clk 0:02:52]}  Nxd4 {[%clk 0:02:37]} 13. Qxd4 {[%clk 0:02:52]}  Qc5 {[%clk 0:02:37]} 14. Qd3 {[%clk 0:02:51]}  b5 {[%clk 0:02:38]} 15. f5 {[%clk 0:02:45]}  Bd7 {[%clk 0:02:22]} 16. fxe6 {[%clk 0:02:04]}  fxe6 {[%clk 0:02:21]} 17. e5 {[%clk 0:02:04]}  Qxe5 {[%clk 0:02:13]} 18. Qg6+ {[%clk 0:02:04]}  Kd8 {[%clk 0:02:13]} 19. Bf3 {[%clk 0:02:02]}  Rc8 {[%clk 0:02:12]} 20. Kb1 {[%clk 0:01:43]}  b4 {[%clk 0:01:54]} 21. Ne2 {[%clk 0:01:18]}  Bb5 {[%clk 0:00:47]} 22. Rfe1 {[%clk 0:01:13]}  Qg5 {[%clk 0:00:47]} 23. Qe4 {[%clk 0:00:49]}  Qe5 {[%clk 0:00:41]} 24. Nd4 {[%clk 0:00:39]}  Qxe4 {[%clk 0:00:39]} 25. Rxe4 {[%clk 0:00:40]}  e5 {[%clk 0:00:38]} 26. Nxb5 {[%clk 0:00:40]}  axb5 {[%clk 0:00:38]} 27. Rxb4 {[%clk 0:00:40]}  Rc5 {[%clk 0:00:38]} 28. a4 {[%clk 0:00:26]}  Kc7 {[%clk 0:00:38]} 29. axb5 {[%clk 0:00:20]}  Kb6 {[%clk 0:00:39]} 30. c4 {[%clk 0:00:21]}  f5 {[%clk 0:00:37]} 31. Bd5 {[%clk 0:00:20]}  e4 {[%clk 0:00:16]} 32. Ra4 {[%clk 0:00:19]}  Bf6 {[%clk 0:00:12]} 33. b4 {[%clk 0:00:13]}  Rxd5 {[%clk 0:00:07]} 34. Rxd5 {[%clk 0:00:14]}  Be5 {[%clk 0:00:07]} 35. Ra6+ {[%clk 0:00:12]}  Kb7 {[%clk 0:00:08]} 36. c5 {[%clk 0:00:13]}  e3 {[%clk 0:00:08]} 37. Kc2 {[%clk 0:00:12]}  Rg8 {[%clk 0:00:07]} 38. g3 {[%clk 0:00:13]}  h4 {[%clk 0:00:08]} 39. c6+ {[%clk 0:00:12]}  Kb8 {[%clk 0:00:06]} 40. b6 {[%clk 0:00:12]}  hxg3 {[%clk 0:00:06]} 41. Rda5 {[%clk 0:00:12]} 1-0


[Site "https://www.chess.com"]

[Event "Titled Tuesday Blitz March 21 Early 2023"]
[White "Amilal Munkhdalai"]
[Black "Nogerbek, Kazybek"]
[WhiteFideId "4903250"]
[BlackFideId "13710427"]
[WhiteElo "2293"]
[BlackElo "2501"]
[Result "1-0"]
[Round "06"]
[TimeControl "180+2"]
[Date "2023.03.21"]
[WhiteClock "0:01:09"]
[BlackClock "0:01:26"]

1. e4 {[%clk 0:03:00]}  g6 {[%clk 0:02:57]} 2. d4 {[%clk 0:03:00]}  Nf6 {[%clk 0:02:57]} 3. Nc3 {[%clk 0:03:00]}  d5 {[%clk 0:02:57]} 4. e5 {[%clk 0:02:56]}  Ne4 {[%clk 0:02:57]} 5. Bd3 {[%clk 0:02:55]}  Nxc3 {[%clk 0:02:56]} 6. bxc3 {[%clk 0:02:56]}  c5 {[%clk 0:02:56]} 7. h3 {[%clk 0:02:54]}  Nc6 {[%clk 0:02:56]} 8. Nf3 {[%clk 0:02:53]}  Qa5 {[%clk 0:02:56]} 9. Bd2 {[%clk 0:02:52]}  c4 {[%clk 0:02:56]} 10. Be2 {[%clk 0:02:52]}  Qa4 {[%clk 0:02:57]} 11. Nh4 {[%clk 0:02:45]}  Bf5 {[%clk 0:02:31]} 12. Nxf5 {[%clk 0:02:44]}  gxf5 {[%clk 0:02:32]} 13. O-O {[%clk 0:02:43]}  e6 {[%clk 0:02:31]} 14. Bf4 {[%clk 0:02:37]}  O-O-O {[%clk 0:02:29]} 15. Bg5 {[%clk 0:02:32]}  Be7 {[%clk 0:02:29]} 16. Qd2 {[%clk 0:02:27]}  Rhg8 {[%clk 0:02:23]} 17. h4 {[%clk 0:02:19]}  Bxg5 {[%clk 0:02:18]} 18. hxg5 {[%clk 0:02:19]}  Qa3 {[%clk 0:02:18]} 19. f4 {[%clk 0:02:17]}  Rg7 {[%clk 0:02:18]} 20. Kf2 {[%clk 0:02:15]}  b5 {[%clk 0:02:12]} 21. Rh1 {[%clk 0:02:10]}  a5 {[%clk 0:02:12]} 22. Rab1 {[%clk 0:02:09]}  b4 {[%clk 0:02:12]} 23. Rh3 {[%clk 0:01:44]}  Qxa2 {[%clk 0:02:07]} 24. Qc1 {[%clk 0:01:41]}  b3 {[%clk 0:01:58]} 25. Rb2 {[%clk 0:01:25]}  Qa3 {[%clk 0:01:55]} 26. cxb3 {[%clk 0:01:20]}  cxb3 {[%clk 0:01:55]} 27. c4 {[%clk 0:01:21]}  Nxd4 {[%clk 0:01:37]} 28. cxd5+ {[%clk 0:01:19]}  Kb8 {[%clk 0:01:36]} 29. Rbxb3+ {[%clk 0:01:18]}  Qxb3 {[%clk 0:01:31]} 30. Rxb3+ {[%clk 0:01:17]}  Nxb3 {[%clk 0:01:32]} 31. Qc3 {[%clk 0:01:10]}  Rxd5 {[%clk 0:01:28]} 32. Qxb3+ {[%clk 0:01:10]}  Kc7 {[%clk 0:01:29]} 33. Bf3 {[%clk 0:01:10]}  Rc5 {[%clk 0:01:29]} 34. Qb7+ {[%clk 0:01:09]}  Kd8 {[%clk 0:01:29]} 35. Qb8+ {[%clk 0:01:08]}  Rc8 {[%clk 0:01:26]} 36. Qd6+ {[%clk 0:01:08]}  Ke8 {[%clk 0:01:26]} 37. Bc6+ {[%clk 0:01:09]} 1-0


[Site "https://www.chess.com"]

[Event "Titled Tuesday Blitz March 21 Early 2023"]
[White "Real_OceanStorm"]
[Black "Alex_Sahakyan2006"]
[WhiteElo "2813"]
[BlackElo "2616"]
[Result "1-0"]
[Round "06"]
[TimeControl "180+2"]
[Date "2023.03.21"]
[WhiteClock "0:00:31"]
[BlackClock "0:00:16"]

1. e4 {[%clk 0:02:56]}  c5 {[%clk 0:02:59]} 2. Nf3 {[%clk 0:02:56]}  Nc6 {[%clk 0:02:59]} 3. c3 {[%clk 0:02:57]}  Nf6 {[%clk 0:02:52]} 4. e5 {[%clk 0:02:57]}  Nd5 {[%clk 0:02:53]} 5. d4 {[%clk 0:02:57]}  cxd4 {[%clk 0:02:53]} 6. cxd4 {[%clk 0:02:58]}  d6 {[%clk 0:02:53]} 7. Nc3 {[%clk 0:02:58]}  Nxc3 {[%clk 0:02:51]} 8. bxc3 {[%clk 0:02:58]}  dxe5 {[%clk 0:02:49]} 9. d5 {[%clk 0:02:58]}  Nb8 {[%clk 0:02:42]} 10. Nxe5 {[%clk 0:02:57]}  Nd7 {[%clk 0:02:42]} 11. Bf4 {[%clk 0:02:57]}  g6 {[%clk 0:02:35]} 12. Bb5 {[%clk 0:02:55]}  Bg7 {[%clk 0:02:34]} 13. Bxd7+ {[%clk 0:02:55]}  Bxd7 {[%clk 0:02:33]} 14. O-O {[%clk 0:02:55]}  O-O {[%clk 0:02:33]} 15. Rb1 {[%clk 0:02:55]}  Qc8 {[%clk 0:02:30]} 16. Re1 {[%clk 0:02:54]}  Bf5 {[%clk 0:02:29]} 17. Rc1 {[%clk 0:02:54]}  Rd8 {[%clk 0:02:29]} 18. c4 {[%clk 0:02:55]}  Qc5 {[%clk 0:02:09]} 19. Qe2 {[%clk 0:02:33]}  Qd4 {[%clk 0:01:35]} 20. g3 {[%clk 0:02:23]}  h5 {[%clk 0:01:32]} 21. Nf3 {[%clk 0:02:22]}  Qb6 {[%clk 0:01:27]} 22. Be5 {[%clk 0:02:20]}  Bh6 {[%clk 0:01:26]} 23. Rc3 {[%clk 0:01:48]}  Bg4 {[%clk 0:01:20]} 24. Rb3 {[%clk 0:01:44]}  Qa6 {[%clk 0:01:19]} 25. Bd4 {[%clk 0:01:26]}  Bg7 {[%clk 0:00:59]} 26. Bxg7 {[%clk 0:01:25]}  Kxg7 {[%clk 0:01:00]} 27. Kg2 {[%clk 0:01:09]}  Rd7 {[%clk 0:00:56]} 28. Qb2+ {[%clk 0:01:09]}  Kg8 {[%clk 0:00:52]} 29. Ne5 {[%clk 0:01:01]}  Rc7 {[%clk 0:00:52]} 30. h3 {[%clk 0:01:01]}  Bc8 {[%clk 0:00:49]} 31. Rf3 {[%clk 0:00:56]}  e6 {[%clk 0:00:44]} 32. Qd4 {[%clk 0:00:36]}  Qd6 {[%clk 0:00:39]} 33. g4 {[%clk 0:00:35]}  exd5 {[%clk 0:00:34]} 34. Nxf7 {[%clk 0:00:31]}  Rxf7 {[%clk 0:00:18]} 35. Re8+ {[%clk 0:00:31]}  Rf8 {[%clk 0:00:15]} 36. Rexf8+ {[%clk 0:00:31]}  Qxf8 {[%clk 0:00:16]} 37. Qxd5+ {[%clk 0:00:31]} 1-0


[Site "https://www.chess.com"]

[Event "Titled Tuesday Blitz March 21 Early 2023"]
[White "Kilic, Eray"]
[Black "Pinheiro, Iung Alicio de O."]
[WhiteFideId "44517173"]
[BlackFideId "2104350"]
[WhiteElo "2328"]
[BlackElo "2283"]
[Result "0-1"]
[Round "06"]
[TimeControl "180+2"]
[Date "2023.03.21"]
[WhiteClock "0:00:07"]
[BlackClock "0:00:03"]

1. d4 {[%clk 0:03:00]}  Nf6 {[%clk 0:02:59]} 2. Nc3 {[%clk 0:03:00]}  d5 {[%clk 0:02:58]} 3. Bf4 {[%clk 0:03:00]}  g6 {[%clk 0:02:57]} 4. Nb5 {[%clk 0:02:55]}  Na6 {[%clk 0:02:57]} 5. e3 {[%clk 0:02:54]}  Bg7 {[%clk 0:02:56]} 6. h3 {[%clk 0:02:54]}  O-O {[%clk 0:02:55]} 7. a3 {[%clk 0:02:50]}  c6 {[%clk 0:02:54]} 8. Nc3 {[%clk 0:02:50]}  Nc7 {[%clk 0:02:54]} 9. Nf3 {[%clk 0:02:49]}  Nce8 {[%clk 0:02:54]} 10. Bd3 {[%clk 0:02:48]}  Nd6 {[%clk 0:02:54]} 11. O-O {[%clk 0:02:49]}  Bf5 {[%clk 0:02:53]} 12. Re1 {[%clk 0:02:49]}  Nfe4 {[%clk 0:02:51]} 13. Ne2 {[%clk 0:02:44]}  f6 {[%clk 0:02:43]} 14. Bh2 {[%clk 0:02:39]}  Re8 {[%clk 0:02:37]} 15. Ng3 {[%clk 0:02:38]}  Nxg3 {[%clk 0:02:23]} 16. Bxg3 {[%clk 0:02:39]}  Bxd3 {[%clk 0:02:01]} 17. cxd3 {[%clk 0:02:37]}  e5 {[%clk 0:02:02]} 18. dxe5 {[%clk 0:02:23]}  fxe5 {[%clk 0:02:03]} 19. e4 {[%clk 0:02:17]}  d4 {[%clk 0:01:58]} 20. h4 {[%clk 0:02:17]}  h6 {[%clk 0:01:55]} 21. h5 {[%clk 0:02:15]}  g5 {[%clk 0:01:45]} 22. Nh2 {[%clk 0:02:15]}  Qd7 {[%clk 0:01:42]} 23. Ng4 {[%clk 0:02:13]}  Qf7 {[%clk 0:01:38]} 24. Rc1 {[%clk 0:02:06]}  Re7 {[%clk 0:01:22]} 25. Rc5 {[%clk 0:01:59]}  Rae8 {[%clk 0:01:22]} 26. Qa4 {[%clk 0:01:58]}  Qxh5 {[%clk 0:01:16]} 27. f3 {[%clk 0:01:52]}  a6 {[%clk 0:01:11]} 28. Qa5 {[%clk 0:01:43]}  Nf7 {[%clk 0:01:10]} 29. b4 {[%clk 0:01:27]}  Qg6 {[%clk 0:01:08]} 30. Qb6 {[%clk 0:01:23]}  h5 {[%clk 0:01:06]} 31. Nf2 {[%clk 0:01:23]}  g4 {[%clk 0:00:59]} 32. fxg4 {[%clk 0:01:23]}  hxg4 {[%clk 0:00:59]} 33. a4 {[%clk 0:01:22]}  Bh6 {[%clk 0:00:57]} 34. b5 {[%clk 0:01:21]}  axb5 {[%clk 0:00:57]} 35. axb5 {[%clk 0:01:22]}  Nd8 {[%clk 0:00:52]} 36. bxc6 {[%clk 0:01:13]}  bxc6 {[%clk 0:00:52]} 37. Qb3+ {[%clk 0:01:13]}  Kh7 {[%clk 0:00:45]} 38. Nd1 {[%clk 0:00:30]}  Nf7 {[%clk 0:00:28]} 39. Rf1 {[%clk 0:00:28]}  Re6 {[%clk 0:00:24]} 40. Qb7 {[%clk 0:00:23]}  R8e7 {[%clk 0:00:24]} 41. Qc8 {[%clk 0:00:23]}  Ng5 {[%clk 0:00:12]} 42. Rf5 {[%clk 0:00:21]}  Nf7 {[%clk 0:00:11]} 43. Bh4 {[%clk 0:00:17]}  Nd6 {[%clk 0:00:10]} 44. Qb8 {[%clk 0:00:14]}  Nxf5 {[%clk 0:00:10]} 45. exf5 {[%clk 0:00:14]}  Qxf5 {[%clk 0:00:10]} 46. Bxe7 {[%clk 0:00:15]}  Rxe7 {[%clk 0:00:11]} 47. Rxc6 {[%clk 0:00:15]}  Be3+ {[%clk 0:00:11]} 48. Nxe3 {[%clk 0:00:14]}  dxe3 {[%clk 0:00:11]} 49. Qb1 {[%clk 0:00:10]}  Qf2+ {[%clk 0:00:10]} 50. Kh2 {[%clk 0:00:10]}  g3+ {[%clk 0:00:08]} 51. Kh3 {[%clk 0:00:06]}  Qf5+ {[%clk 0:00:07]} 52. Kxg3 {[%clk 0:00:07]}  Qf4+ {[%clk 0:00:07]} 53. Kh3 {[%clk 0:00:07]}  e2 {[%clk 0:00:05]} 54. d4+ {[%clk 0:00:06]}  e4 {[%clk 0:00:05]} 55. Qe1 {[%clk 0:00:06]}  Qe3+ {[%clk 0:00:05]} 56. Kh2 {[%clk 0:00:06]}  Qf4+ {[%clk 0:00:05]} 57. g3 {[%clk 0:00:06]}  Qf1 {[%clk 0:00:05]} 58. Rc1 {[%clk 0:00:07]}  Rf7 {[%clk 0:00:03]} 59. g4 {[%clk 0:00:06]}  Rf2+ {[%clk 0:00:03]} 60. Kg3 {[%clk 0:00:07]}  Qg2+ {[%clk 0:00:03]} 61. Kh4 {[%clk 0:00:07]}  Qh2+ {[%clk 0:00:02]} 62. Kg5 {[%clk 0:00:07]}  Qf4+ {[%clk 0:00:03]} 0-1


[Site "https://www.chess.com"]